bitfinex/quotes_SOLUSD_20250611
["timestamp","ask_amount","ask_price","bid_price","bid_amount"]
[1749664044958,17.90159729,164.73,164.62,18.64964886]
[1749664045266,23.57106947,164.65,164.61,24.26]
[1749664045454,23.57106947,164.64,164.61,24.26]
[1749664045879,23.57106947,164.65,164.61,47.83106947]
[1749664046078,39.0445,164.73,164.64,23.57106947]
[1749664046590,33.02,164.73,164.65,23.57106947]
[1749664046893,33.02,164.73,164.62,20.29604886]
[1749664047066,23.57106947,164.66,164.62,20.29604886]
[1749664047266,23.57106947,164.66,164.62,43.86711833]
[1749664047470,23.57106947,164.66,164.62,20.29604886]
[1749664048370,23.57106947,164.65,164.61,24.28]
[1749664048573,23.57106947,164.63,164.61,24.28]
[1749664048884,23.57106947,164.64,164.6,47.85106947]
[1749664049086,23.57106947,164.65,164.6,47.85106947]
[1749664049288,23.57106947,164.65,164.6,23.57106947]
[1749664049485,23.57106947,164.65,164.61,24.28]
[1749664049680,23.57106947,164.66,164.61,47.85106947]
[1749664051085,23.57106947,164.66,164.62,23.57106947]
[1749664051261,23.57106947,164.66,164.62,47.85106947]
[1749664051464,23.57106947,164.66,164.62,24.28]
[1749664051881,26.0,164.7,164.62,24.28]
[1749664052090,23.57106947,164.66,164.62,47.85106947]
[1749664052280,23.57106947,164.67,164.62,47.85106947]
[1749664052595,49.57106947,164.7,164.63,24.28]
[1749664052800,23.57106947,164.64,164.56,6.3813]
[1749664052972,6.1798,164.68,164.57,42.92964886]
[1749664052973,23.57106947,164.6,164.57,42.92964886]
[1749664053378,14.16631341,164.6,164.57,42.92964886]
[1749664053886,14.16631341,164.6,164.57,24.28]
[1749664054280,3.01087402,164.62,164.52,24.28]
[1749664054600,14.16631341,164.58,164.53,57.09596227]
[1749664055578,20.24029684,164.64,164.54,24.28]
[1749664055579,14.16631341,164.57,164.54,24.28]
[1749664055807,14.16631341,164.56,164.53,24.28]
[1749664056180,20.24029684,164.64,164.52,18.64964886]
[1749664056504,14.16631341,164.55,164.52,42.92964886]
[1749664056691,26.0,164.61,164.51,24.28]
[1749664057094,26.0,164.61,164.5,24.28]
[1749664057307,23.63032578,164.53,164.49,42.27997464]
[1749664057599,23.63032578,164.53,164.49,18.64964886]
[1749664057899,6.4485,164.56,164.48,2.64693469]
[1749664058287,1.636,164.55,164.48,2.64693469]
[1749664058594,23.63032578,164.49,164.48,2.64693469]
[1749664058796,6.4485,164.56,164.48,2.64693469]
[1749664058990,23.63032578,164.51,164.48,2.64693469]
[1749664059191,6.4485,164.56,164.48,2.64693469]
[1749664059391,23.63032578,164.5,164.48,2.64693469]
[1749664059702,23.63032578,164.52,164.49,18.64964886]
[1749664060108,23.63032578,164.5,164.48,2.64693469]
[1749664060285,23.63032578,164.49,164.48,2.64693469]
[1749664060482,23.63032578,164.5,164.48,2.64693469]
[1749664061186,0.14216157,164.56,164.48,2.64693469]
[1749664061382,0.42648471,164.56,164.48,2.64693469]
[1749664061680,23.63032578,164.49,164.48,2.64693469]
[1749664061986,26.0,164.55,164.48,2.64693469]
[1749664062386,23.63032578,164.49,164.48,2.64693469]
[1749664063410,26.0,164.54,164.48,2.64693469]
[1749664063597,23.63032578,164.49,164.48,2.64693469]
[1749664065007,0.28432314,164.53,164.48,2.64693469]
[1749664065190,23.63032578,164.49,164.48,2.64693469]
[1749664066782,23.63032578,164.5,164.48,2.64693469]
[1749664066986,26.0,164.54,164.48,2.64693469]
[1749664067314,23.63032578,164.49,164.48,2.64693469]
[1749664067814,26.0,164.54,164.48,2.64693469]
[1749664068422,23.63032578,164.49,164.48,2.64693469]
[1749664069102,26.0,164.54,164.48,2.64693469]
[1749664069299,23.63032578,164.49,164.48,2.64693469]
[1749664069506,26.0,164.54,164.48,2.64693469]
[1749664069699,23.63032578,164.49,164.48,2.64693469]
[1749664069897,26.0,164.54,164.48,2.64693469]
[1749664070110,23.63032578,164.49,164.48,2.64693469]
[1749664070706,26.0,164.54,164.48,2.64693469]
[1749664070917,23.63032578,164.49,164.48,2.64693469]
[1749664071410,26.0,164.53,164.48,2.64693469]
[1749664071629,26.0,164.54,164.48,2.64693469]
[1749664071918,23.63032578,164.5,164.48,2.64693469]
[1749664072224,26.0,164.54,164.48,2.64693469]
[1749664072385,23.63032578,164.51,164.48,2.64693469]
[1749664072584,23.63032578,164.5,164.48,2.64693469]
[1749664072819,23.63032578,164.49,164.48,2.64693469]
[1749664073205,23.63032578,164.5,164.48,2.64693469]
[1749664073387,26.0,164.54,164.48,2.64693469]
[1749664073714,23.63032578,164.51,164.48,2.64693469]
[1749664074106,23.63032578,164.51,164.48,26.94693469]
[1749664074826,0.28432314,164.57,164.48,26.94693469]
[1749664075003,23.63032578,164.51,164.48,26.94693469]
[1749664075520,0.28432314,164.57,164.48,26.94693469]
[1749664075687,23.63032578,164.51,164.48,26.94693469]
[1749664075888,0.28432314,164.56,164.48,26.94693469]
[1749664076122,6.21882742,164.57,164.48,2.64693469]
[1749664076123,23.63032578,164.49,164.48,2.64693469]
[1749664077207,14.1912126,164.49,164.48,2.64693469]
[1749664079096,26.0,164.53,164.48,2.64693469]
[1749664079287,23.65048839,164.49,164.48,2.64693469]
[1749664080916,26.0,164.52,164.48,2.64693469]
[1749664081504,23.65048839,164.49,164.48,2.64693469]
[1749664081720,23.65048839,164.5,164.48,2.64693469]
[1749664082630,32.07653478,164.57,164.48,2.64693469]
[1749664082818,23.65048839,164.5,164.48,2.64693469]
[1749664083014,23.65048839,164.51,164.48,2.64693469]
[1749664083218,26.0,164.56,164.48,2.64693469]
[1749664083523,15.65171181,164.59,164.49,23.65048839]
[1749664083722,23.65048839,164.54,164.49,23.65048839]
[1749664084032,7.94,164.59,164.5,18.64964886]
[1749664084327,23.65048839,164.53,164.5,1.6008]
[1749664084532,23.65048839,164.52,164.5,1.6008]
[1749664085127,14.01581132,164.59,164.5,1.6008]
[1749664085434,23.65048839,164.52,164.5,1.6008]
[1749664085936,14.01581132,164.59,164.5,1.6008]
[1749664086125,23.65048839,164.55,164.51,23.65048839]
[1749664086323,7.94,164.59,164.52,23.65048839]
[1749664086636,23.65048839,164.58,164.54,23.65048839]
[1749664086809,6.4183,164.65,164.53,42.94964886]
[1749664087005,23.65048839,164.58,164.53,66.60013725]
[1749664087203,12.49198404,164.65,164.54,18.64964886]
[1749664087425,23.65048839,164.58,164.54,42.30013725]
[1749664087627,23.65048839,164.57,164.54,18.64964886]
[1749664087809,23.65048839,164.58,164.54,18.64964886]
[1749664088014,6.07394521,164.64,164.54,18.64964886]
[1749664088337,23.65048839,164.59,164.54,42.30013725]
[1749664088529,23.65048839,164.58,164.54,42.30013725]
[1749664088837,26.0,164.64,164.54,18.64964886]
[1749664089131,26.0,164.64,164.54,42.30013725]
[1749664089311,23.65048839,164.58,164.54,18.64964886]
[1749664089511,23.65048839,164.56,164.53,24.3]
[1749664089717,23.65048839,164.57,164.53,24.3]
[1749664090525,23.65048839,164.56,164.53,24.3]
[1749664090737,6.07462775,164.62,164.53,24.3]
[1749664091038,23.65048839,164.57,164.53,47.95048839]
[1749664092131,23.65048839,164.57,164.53,24.3]
[1749664092715,23.65048839,164.56,164.53,24.3]
[1749664093045,23.65048839,164.54,164.5,1.6008]
[1749664093223,23.65048839,164.51,164.5,1.6008]
[1749664093931,49.65048839,164.6,164.5,1.6008]
[1749664093932,23.65048839,164.52,164.5,1.6008]
[1749664094133,23.65048839,164.55,164.51,18.64964886]
[1749664094429,23.65048839,164.52,164.5,1.6008]
[1749664094638,32.07551344,164.6,164.5,1.6008]
[1749664094834,23.65048839,164.53,164.5,1.6008]
[1749664095022,23.65048839,164.52,164.5,1.6008]
[1749664095426,23.65048839,164.53,164.5,1.6008]
[1749664096371,23.65048839,164.52,164.5,1.6008]
[1749664096513,23.65048839,164.51,164.5,1.6008]
[1749664096717,23.65048839,164.52,164.5,1.6008]
[1749664098762,23.65048839,164.51,164.49,24.3]
[1749664100063,6.07619217,164.58,164.49,24.3]
[1749664100252,23.65048839,164.52,164.49,24.3]
[1749664101027,7.61429594,164.59,164.5,24.3]
[1749664101232,14.17999841,164.52,164.5,24.3]
[1749664101828,14.17999841,164.56,164.5,24.3]
[1749664102031,14.17999841,164.52,164.5,24.3]
[1749664102243,14.17999841,164.51,164.5,24.3]
[1749664102672,14.17999841,164.56,164.5,24.3]
[1749664102836,14.17999841,164.51,164.49,24.3]
[1749664103153,14.17999841,164.56,164.5,24.3]
[1749664103546,14.17999841,164.52,164.5,24.3]
[1749664105267,26.0,164.57,164.5,24.3]
[1749664105465,14.17999841,164.52,164.5,24.3]
[1749664105637,14.17999841,164.51,164.5,24.3]
[1749664106643,14.17999841,164.51,164.48,89.94693469]
[1749664106837,14.17999841,164.49,164.48,2.64693469]
[1749664107644,6.07753821,164.55,164.48,2.64693469]
[1749664107950,14.17999841,164.49,164.48,2.64693469]
[1749664109360,20.40719841,164.56,164.48,2.64693469]
[1749664109556,14.17999841,164.49,164.48,2.64693469]
[1749664110344,6.07718018,164.55,164.48,2.64693469]
[1749664110862,14.17999841,164.49,164.48,2.64693469]
[1749664111066,6.3469,164.48,164.33,6.6136]
[1749664111248,28.35999682,164.42,164.33,6.6136]
[1749664111574,28.35999682,164.42,164.33,30.9136]
[1749664111774,14.17999841,164.35,164.33,30.9136]
[1749664112073,14.17999841,164.4,164.28,10.76815987]
[1749664112074,14.17999841,164.34,164.29,6.3531]
[1749664112273,14.17999841,164.4,164.21,18.26083369]
[1749664112274,14.17999841,164.3,164.24,8.1908]
[1749664112453,14.17999841,164.32,164.25,38.47999841]
[1749664112454,3.07363636,164.32,164.25,38.47999841]
[1749664112655,14.17999841,164.36,164.31,14.17999841]
[1749664112970,14.17999841,164.34,164.32,24.3]
[1749664113177,17.23723394,164.4,164.33,24.3]
[1749664113363,3.05723553,164.4,164.33,24.3]
[1749664113561,6.64588807,164.43,164.33,24.3]
[1749664113562,1.6617,164.43,164.33,24.3]
[1749664113969,1.6617,164.43,164.29,18.64964886]
[1749664114255,23.68757666,164.37,164.29,24.3]
[1749664114477,0.14216157,164.42,164.29,24.3]
[1749664114478,23.68757666,164.38,164.29,24.3]
[1749664114780,3.07181097,164.4,164.35,23.68757666]
[1749664114980,23.68757666,164.41,164.36,23.68757666]
[1749664115351,23.68757666,164.4,164.31,18.64964886]
[1749664115551,23.68757666,164.41,164.36,23.68757666]
[1749664115748,23.68757666,164.41,164.31,18.64964886]
[1749664115954,23.68757666,164.41,164.36,23.68757666]
[1749664116171,23.68757666,164.41,164.31,18.64964886]
[1749664116172,23.68757666,164.41,164.37,23.68757666]
[1749664116552,23.68757666,164.41,164.34,24.3]
[1749664116774,23.68757666,164.41,164.36,23.68757666]
[1749664116971,23.68757666,164.42,164.37,23.68757666]
[1749664117180,1.6617,164.43,164.38,23.68757666]
[1749664117349,7.76,164.46,164.4,23.68757666]
[1749664117554,10.72840777,164.46,164.4,23.68757666]
[1749664117877,23.68757666,164.44,164.4,23.68757666]
[1749664118081,10.72840777,164.46,164.42,23.68757666]
[1749664118273,10.72840777,164.46,164.39,24.32]
[1749664118587,34.41598443,164.46,164.42,23.68757666]
[1749664119279,23.68757666,164.45,164.41,23.68757666]
[1749664119602,34.41598443,164.46,164.41,23.68757666]
[1749664119768,10.72840777,164.46,164.44,23.68757666]
[1749664120086,23.68757666,164.49,164.45,23.68757666]
[1749664120273,23.68757666,164.5,164.45,23.68757666]
[1749664120676,8.1933,164.52,164.4,23.68757666]
[1749664120677,23.68757666,164.49,164.4,23.68757666]
[1749664120993,23.68757666,164.46,164.41,23.68757666]
[1749664121513,23.68757666,164.46,164.32,8.10726157]
[1749664121514,0.28432314,164.48,164.32,7.9651]
[1749664121789,0.14216157,164.47,164.37,23.68757666]
[1749664121964,23.68757666,164.44,164.4,23.68757666]
[1749664122160,26.0,164.47,164.4,23.68757666]
[1749664122360,23.68757666,164.44,164.4,23.68757666]
[1749664122564,49.68757666,164.47,164.42,23.68757666]
[1749664122765,23.68757666,164.47,164.42,23.68757666]
[1749664123192,23.68757666,164.46,164.38,24.32]
[1749664123391,23.68757666,164.46,164.41,23.68757666]
[1749664124389,32.22162028,164.49,164.41,23.68757666]
[1749664124575,32.22162028,164.49,164.42,23.68757666]
[1749664124775,6.0798981,164.48,164.42,23.68757666]
[1749664124989,26.0,164.49,164.44,23.68757666]
[1749664125172,49.68757666,164.49,164.44,23.68757666]
[1749664125780,55.7670242,164.49,164.44,23.68757666]
[1749664126171,23.68757666,164.48,164.38,24.32]
[1749664126365,23.68757666,164.48,164.43,23.68757666]
[1749664126571,32.07944754,164.49,164.43,23.68757666]
[1749664126771,32.07944754,164.49,164.38,24.32]
[1749664126978,23.68757666,164.48,164.44,23.68757666]
[1749664127497,32.07944754,164.49,164.44,23.68757666]
[1749664127686,23.68757666,164.48,164.44,23.68757666]
[1749664127882,26.0,164.49,164.44,23.68757666]
[1749664128081,49.68757666,164.49,164.44,23.68757666]
[1749664128297,55.76700277,164.49,164.44,23.68757666]
[1749664128499,26.0,164.49,164.44,23.68757666]
[1749664128688,23.68757666,164.49,164.44,23.68757666]
[1749664129076,23.68757666,164.47,164.38,24.32]
[1749664129381,23.68757666,164.47,164.43,23.68757666]
[1749664129584,23.68757666,164.47,164.42,23.68757666]
[1749664129783,23.68757666,164.46,164.38,24.32]
[1749664129988,23.68757666,164.46,164.41,23.68757666]
[1749664130195,23.68757666,164.45,164.36,18.64964886]
[1749664130399,23.68757666,164.45,164.4,23.68757666]
[1749664130574,26.0,164.48,164.33,18.64964886]
[1749664130776,23.68757666,164.4,164.36,23.68757666]
[1749664131388,23.68757666,164.4,164.34,24.32]
[1749664131582,23.68757666,164.4,164.33,18.64964886]
[1749664131784,23.68757666,164.39,164.34,24.32]
[1749664132099,6.08167689,164.43,164.32,7.9651]
[1749664132289,6.08167689,164.43,164.33,23.68757666]
[1749664132498,23.68757666,164.37,164.33,23.68757666]
[1749664133491,23.68757666,164.38,164.34,23.68757666]
[1749664133716,23.68757666,164.38,164.32,24.32]
[1749664134011,23.68757666,164.38,164.34,23.68757666]
[1749664134181,23.68757666,164.39,164.34,23.68757666]
[1749664134374,23.68757666,164.39,164.35,23.68757666]
[1749664134620,7.58,164.43,164.38,23.68757666]
[1749664134790,7.58,164.43,164.33,18.64964886]
[1749664134791,7.58,164.43,164.4,23.68757666]
[1749664135111,7.58,164.43,164.39,23.68757666]
[1749664135316,31.26757666,164.43,164.39,23.68757666]
[1749664135681,7.58,164.43,164.39,23.68757666]
[1749664135995,23.68757666,164.46,164.42,23.68757666]
[1749664137001,7.60847836,164.48,164.42,23.68757666]
[1749664137002,1.5286,164.48,164.42,23.68757666]
[1749664137218,23.68757666,164.47,164.43,23.68757666]
[1749664137581,23.68757666,164.47,164.42,23.68757666]
[1749664137780,23.68757666,164.46,164.42,23.68757666]
[1749664138016,23.68757666,164.46,164.38,18.64964886]
[1749664138213,23.68757666,164.46,164.42,23.68757666]
[1749664138394,23.68757666,164.46,164.41,23.68757666]
[1749664139290,6.08070108,164.46,164.37,24.32]
[1749664139493,23.68757666,164.41,164.37,48.00757666]
[1749664139708,23.68757666,164.42,164.37,48.00757666]
[1749664140202,23.68757666,164.43,164.38,23.68757666]
[1749664140591,23.68757666,164.43,164.39,2.07914372]
[1749664140785,23.68757666,164.43,164.4,2.07920699]
[1749664141030,23.68757666,164.44,164.41,2.07920699]
[1749664141187,23.68757666,164.44,164.39,23.68757666]
[1749664141383,23.68757666,164.44,164.4,2.07908676]
[1749664141692,23.68757666,164.44,164.39,23.68757666]
[1749664141888,23.68757666,164.44,164.4,2.0791358]
[1749664142138,23.68757666,164.44,164.41,2.07912853]
[1749664142335,23.68757666,164.44,164.42,2.07912853]
[1749664142514,23.68757666,164.45,164.43,2.07909839]
[1749664142724,23.68757666,164.47,164.44,2.07898015]
[1749664143037,23.68757666,164.47,164.42,23.68757666]
[1749664143343,23.68757666,164.46,164.43,2.07891673]
[1749664143642,23.68757666,164.47,164.44,2.07894577]
[1749664143946,23.68757666,164.47,164.42,23.68757666]
[1749664144146,23.68757666,164.45,164.43,2.07889094]
[1749664144446,23.68757666,164.44,164.4,23.68757666]
[1749664144644,23.68757666,164.44,164.41,2.07900378]
[1749664144823,23.68757666,164.45,164.42,2.07900378]
[1749664145023,23.68757666,164.45,164.43,2.05787747]
[1749664145256,23.68757666,164.45,164.4,23.68757666]
[1749664145417,23.68757666,164.45,164.41,2.05786738]
[1749664145618,23.68757666,164.45,164.42,2.05786738]
[1749664145835,23.68757666,164.45,164.41,23.68757666]
[1749664146159,23.68757666,164.45,164.42,2.0578913]
[1749664146359,23.68757666,164.45,164.41,23.68757666]
[1749664146656,23.68757666,164.45,164.42,2.05790144]
[1749664146834,23.68757666,164.46,164.41,23.68757666]
[1749664147036,23.68757666,164.45,164.42,2.05779014]
[1749664147348,23.68757666,164.44,164.4,24.32]
[1749664147554,23.68757666,164.46,164.42,23.68757666]
[1749664148055,23.68757666,164.45,164.4,23.68757666]
[1749664148223,23.68757666,164.45,164.41,2.05788768]
[1749664148425,23.68757666,164.45,164.42,2.05788742]
[1749664148722,23.68757666,164.45,164.39,24.32]
[1749664148921,23.68757666,164.45,164.4,23.68757666]
[1749664149349,23.68757666,164.45,164.41,25.74544404]
[1749664149642,49.68757666,164.5,164.42,2.05786712]
[1749664149643,23.68757666,164.46,164.42,2.05786712]
[1749664149825,23.68757666,164.46,164.41,23.68757666]
[1749664150022,23.68757666,164.46,164.42,2.05784936]
[1749664150222,23.68757666,164.46,164.41,23.68757666]
[1749664150422,6.07948003,164.49,164.42,2.057877]
[1749664150622,6.07948003,164.49,164.41,23.68757666]
[1749664150828,6.07948003,164.49,164.42,2.05786609]
[1749664151026,6.07948003,164.49,164.43,2.05786609]
[1749664151027,23.68757666,164.46,164.43,2.05786609]
[1749664151253,23.68757666,164.46,164.41,23.68757666]
[1749664151427,23.68757666,164.46,164.42,2.05786635]
[1749664151626,23.68757666,164.47,164.43,2.05786635]
[1749664151837,23.68757666,164.47,164.42,23.68757666]
[1749664152058,6.07948003,164.49,164.43,2.06025018]
[1749664152239,23.68757666,164.47,164.42,23.68757666]
[1749664152436,23.68757666,164.47,164.43,2.06022174]
[1749664152631,23.68757666,164.48,164.4,24.32]
[1749664152938,23.68757666,164.47,164.42,23.68757666]
[1749664153127,23.68757666,164.47,164.36,26.66674886]
[1749664153324,23.68757666,164.47,164.42,23.68757666]
[1749664153847,23.68757666,164.47,164.43,2.06024185]
[1749664154037,23.68757666,164.47,164.42,23.68757666]
[1749664154362,0.28432314,164.48,164.36,8.0171]
[1749664154655,6.07948003,164.49,164.41,23.68757666]
[1749664154656,21.27797233,164.49,164.41,23.68757666]
[1749664154846,32.07907085,164.5,164.43,23.68757666]
[1749664155031,23.68757666,164.48,164.44,2.05819139]
[1749664155354,23.68757666,164.48,164.43,23.68757666]
[1749664155541,23.68757666,164.47,164.44,2.05810433]
[1749664155739,23.68757666,164.47,164.43,23.68757666]
[1749664156134,6.07907085,164.5,164.44,2.05813777]
[1749664156328,23.68757666,164.48,164.44,23.68757666]
[1749664156527,23.68757666,164.48,164.43,23.68757666]
[1749664156736,23.68757666,164.48,164.44,2.05806443]
[1749664156937,23.68757666,164.48,164.43,23.68757666]
[1749664157157,6.0790991,164.5,164.39,18.64964886]
[1749664157351,23.68757666,164.46,164.4,2.05806193]
[1749664157648,23.68757666,164.46,164.42,23.68757666]
[1749664157830,23.68757666,164.47,164.43,2.05806193]
[1749664158027,23.68757666,164.47,164.44,2.05809001]
[1749664158223,23.68757666,164.47,164.42,23.68757666]
[1749664158429,23.68757666,164.46,164.43,2.05809662]
[1749664158737,23.68757666,164.46,164.42,23.68757666]
[1749664158931,23.68757666,164.46,164.43,2.06703414]
[1749664159131,23.68757666,164.46,164.44,2.06703414]
[1749664159332,23.68757666,164.46,164.38,24.32]
[1749664159543,23.68757666,164.46,164.42,23.68757666]
[1749664159862,23.68757666,164.47,164.43,2.0670446]
[1749664160034,23.68757666,164.46,164.38,24.32]
[1749664160365,26.0,164.46,164.39,2.06704408]
[1749664160574,23.68757666,164.41,164.37,23.68757666]
[1749664160868,23.68757666,164.42,164.4,2.06735132]
[1749664161057,6.08118778,164.45,164.38,23.68757666]
[1749664161256,23.68757666,164.42,164.35,24.32]
[1749664161465,23.68757666,164.42,164.38,23.68757666]
[1749664161770,23.68757666,164.41,164.39,2.06768276]
[1749664162148,6.08118778,164.45,164.39,2.06768276]
[1749664162355,23.68757666,164.42,164.39,2.06768276]
[1749664162542,23.68757666,164.42,164.35,24.32]
[1749664162742,6.08149581,164.44,164.36,23.68757666]
[1749664162963,6.08149581,164.44,164.35,24.32]
[1749664163245,6.08089438,164.45,164.38,23.68757666]
[1749664163548,7.61425555,164.49,164.4,23.68757666]
[1749664163549,23.68757666,164.44,164.4,23.68757666]
[1749664163861,23.68757666,164.45,164.41,23.68757666]
[1749664164058,23.68757666,164.45,164.42,2.17961334]
[1749664164361,23.68757666,164.46,164.43,6.73267032]
[1749664164585,23.68757666,164.46,164.44,6.73232675]
[1749664164765,23.68757666,164.46,164.45,6.7323262]
[1749664165071,23.68757666,164.46,164.45,6.73119034]
[1749664165376,16.69435256,164.51,164.45,2.17912383]
[1749664165667,14.19453812,164.47,164.46,6.73069017]
[1749664165966,14.19453812,164.47,164.46,4.55171178]
[1749664166272,14.19453812,164.47,164.46,6.73069286]
[1749664166568,42.69435256,164.51,164.46,6.7307397]
[1749664166768,14.19453812,164.48,164.47,6.73073972]
[1749664167085,14.19453812,164.48,164.47,6.73069449]
[1749664167253,23.65412408,164.48,164.47,6.73074187]
[1749664167454,23.65412408,164.48,164.47,6.73076881]
[1749664167768,23.65412408,164.48,164.47,4.55186144]
[1749664167942,23.65412408,164.48,164.47,4.55197431]
[1749664168147,23.65412408,164.48,164.47,4.55197366]
[1749664168454,23.65412408,164.48,164.47,4.55199002]
[1749664168858,21.27659573,164.5,164.47,4.55198245]
[1749664169064,23.65412408,164.48,164.43,23.65412408]
[1749664169260,23.65412408,164.47,164.44,6.73105854]
[1749664169447,23.65412408,164.48,164.45,4.55196249]
[1749664169648,23.65412408,164.48,164.46,6.73105689]
[1749664169848,23.65412408,164.48,164.43,23.65412408]
[1749664170066,21.27659573,164.5,164.44,6.7286719]
[1749664170259,23.65412408,164.48,164.45,6.7286719]
[1749664170551,23.65412408,164.48,164.46,6.7286719]
[1749664170766,23.65412408,164.48,164.47,4.55034736]
[1749664171242,6.07951748,164.49,164.47,4.55034736]
[1749664171445,29.73364156,164.49,164.48,4.55034736]
[1749664171858,29.73364156,164.49,164.48,4.55001892]
[1749664172261,29.73364156,164.49,164.48,6.72817158]
[1749664172463,6.07951748,164.49,164.48,6.72813005]
[1749664172661,40.34826426,164.51,164.48,6.72813005]
[1749664172970,16.69414018,164.51,164.49,4.54996517]
[1749664173268,16.69414018,164.51,164.5,4.54996517]
[1749664173460,40.34826426,164.51,164.5,4.54996517]
[1749664173849,16.69414018,164.51,164.5,4.54996517]
[1749664174163,40.34826426,164.51,164.5,4.54996517]
[1749664175369,10.61537869,164.51,164.5,4.54996517]
[1749664175750,10.61537869,164.51,164.48,23.65412408]
[1749664175948,10.61537869,164.51,164.49,23.65412408]
[1749664176260,3.03537869,164.51,164.5,23.65412408]
[1749664176448,29.73136982,164.55,164.5,28.19675451]
[1749664176650,41.19187134,164.57,164.51,28.19675451]
[1749664176651,32.07655883,164.57,164.51,28.19675451]
[1749664176850,3.01356253,164.57,164.54,23.65412408]
[1749664177044,22.51612786,164.63,164.55,4.54263043]
[1749664177045,4.75043891,164.61,164.55,4.54263043]
[1749664177245,10.8257175,164.61,164.56,30.22828614]
[1749664177451,34.61920081,164.62,164.57,30.22805834]
[1749664177652,10.96507673,164.62,164.57,23.65412408]
[1749664177865,23.65412408,164.61,164.58,4.53735493]
[1749664178073,10.96491064,164.62,164.56,23.65412408]
[1749664178248,23.65412408,164.6,164.57,4.53780626]
[1749664178453,4.89027234,164.62,164.58,4.53780626]
[1749664178751,37.24991459,164.59,164.48,8.1949]
[1749664178952,6.07718018,164.55,164.51,23.65412408]
[1749664179258,29.73130426,164.55,164.52,2.02496845]
[1749664179602,29.73130426,164.55,164.5,23.65412408]
[1749664179603,29.73130426,164.55,164.53,4.53843918]
[1749664179776,29.73130426,164.55,164.54,4.53843918]
[1749664180360,29.73130426,164.55,164.5,23.65412408]
[1749664180671,6.07718018,164.55,164.51,23.65412408]
[1749664180886,23.65412408,164.56,164.52,23.65412408]
[1749664181450,23.65412408,164.56,164.51,23.65412408]
[1749664181652,23.65412408,164.56,164.52,25.67909689]
[1749664181872,29.7301965,164.58,164.53,23.65412408]
[1749664182080,29.7301965,164.58,164.54,23.65412408]
[1749664182576,29.7301965,164.58,164.48,32.5149]
[1749664182577,23.65412408,164.57,164.48,32.5149]
[1749664182756,6.07607242,164.58,164.52,23.65412408]
[1749664182956,23.65412408,164.57,164.52,23.65412408]
[1749664183276,6.07623932,164.58,164.53,23.65412408]
[1749664183461,29.7303634,164.58,164.53,23.65412408]
[1749664183657,23.65412408,164.56,164.51,23.65412408]
[1749664183851,23.65412408,164.56,164.52,2.01913266]
[1749664184065,23.65412408,164.56,164.52,23.65412408]
[1749664184269,23.65412408,164.55,164.51,23.65412408]
[1749664184570,23.65412408,164.54,164.52,2.01910681]
[1749664184748,23.65412408,164.54,164.48,32.5149]
[1749664184948,23.65412408,164.54,164.49,25.67324493]
[1749664185154,23.65412408,164.53,164.5,2.01912085]
[1749664185349,23.65412408,164.53,164.51,2.01516616]
[1749664185555,23.65412408,164.53,164.48,56.16902408]
[1749664185963,6.07722503,164.55,164.49,2.01525709]
[1749664186156,23.65412408,164.53,164.5,2.0152571]
[1749664186478,23.65412408,164.52,164.48,8.1949]
[1749664186659,6.07722503,164.55,164.45,47.95412408]
[1749664186660,21.2701755,164.55,164.45,47.95412408]
[1749664186853,23.65412408,164.5,164.45,47.95412408]
[1749664187054,23.65412408,164.5,164.46,25.66968578]
[1749664187286,23.65412408,164.51,164.47,2.0155617]
[1749664187483,23.65412408,164.51,164.48,2.0155433]
[1749664187656,23.65412408,164.51,164.46,23.65412408]
[1749664187860,23.65412408,164.51,164.47,2.01555929]
[1749664188175,23.65412408,164.5,164.46,23.65412408]
[1749664188481,23.65412408,164.5,164.47,2.01554771]
[1749664188666,23.65412408,164.5,164.48,2.01554771]
[1749664188978,23.65412408,164.5,164.46,23.65412408]
[1749664189185,23.65412408,164.5,164.47,2.01555448]
[1749664189390,23.65412408,164.5,164.48,2.01555422]
[1749664189563,23.65412408,164.51,164.44,32.3669]
[1749664189881,23.65412408,164.51,164.46,23.65412408]
[1749664190100,23.65412408,164.51,164.47,2.01556296]
[1749664190381,23.65412408,164.51,164.48,2.0155627]
[1749664190577,23.65412408,164.51,164.46,23.65412408]
[1749664190777,23.65412408,164.51,164.47,2.01355408]
[1749664190970,23.65412408,164.51,164.48,2.01355332]
[1749664191166,23.65412408,164.51,164.46,23.65412408]
[1749664191363,14.18662897,164.51,164.47,2.01354459]
[1749664191564,14.18662897,164.51,164.48,2.01354585]
[1749664191753,14.18662897,164.5,164.45,14.18662897]
[1749664191959,14.18662897,164.49,164.46,2.01362643]
[1749664192267,14.18662897,164.48,164.47,2.01362642]
[1749664192473,14.18662897,164.48,164.44,22.25352897]
[1749664192690,14.18662897,164.49,164.45,2.01378804]